bitfinex-derivatives/quotes_BTCF0:USTF0_20220102
["timestamp","ask_amount","ask_price","bid_price","bid_amount"]
[1641084578755,1.19225673,47668.0,47666.0,0.001]
[1641084578959,1.19225673,47668.0,47667.0,0.001]
[1641084579959,1.19225673,47668.0,47667.0,1.18881651]
[1641084580558,1.19225673,47668.0,47667.0,1.32915218]
[1641084580860,1.19225673,47668.0,47667.0,0.15112967]
[1641084581261,1.19225673,47670.0,47667.0,0.34212967]
[1641084581460,1.19225673,47670.0,47669.0,0.001]
[1641084582060,1.19225673,47670.0,47669.0,0.02197646]
[1641084582261,1.19225673,47670.0,47669.0,1.19956225]
[1641084583359,1.19225673,47670.0,47669.0,1.39156225]
[1641084583560,1.19225673,47670.0,47669.0,0.21397646]
[1641084583760,1.19225673,47671.0,47669.0,1.06858836]
[1641084583961,1.19225673,47671.0,47670.0,0.001]
[1641084584361,1.19225673,47671.0,47670.0,2.03364564]
[1641084585262,1.19225673,47671.0,47670.0,2.22564564]
[1641084586564,1.19225673,47671.0,47670.0,2.03364564]
[1641084587362,1.19225673,47671.0,47670.0,2.22564564]
[1641084588563,1.19225673,47671.0,47670.0,2.03364564]
[1641084588763,1.19225673,47671.0,47670.0,2.17398131]
[1641084589266,1.19225673,47671.0,47670.0,1.51136941]
[1641084589563,0.35715893,47674.0,47670.0,0.33333567]
[1641084589762,0.35715893,47674.0,47673.0,0.001]
[1641084590864,0.59526249,47676.0,47673.0,0.001]
[1641084591164,0.59526249,47675.0,47670.0,0.14033567]
[1641084591367,0.59526249,47675.0,47674.0,0.001]
[1641084591772,0.08942759,47675.0,47674.0,0.001]
[1641084592466,0.08942759,47676.0,47674.0,0.001]
[1641084592667,0.08942759,47676.0,47670.0,0.14033567]
[1641084593269,0.35717092,47673.0,47670.0,0.33033567]
[1641084593469,0.35717092,47673.0,47672.0,0.001]
[1641084594273,0.08942759,47676.0,47672.0,0.001]
[1641084594468,0.08942759,47676.0,47670.0,0.33033567]
[1641084594970,0.35716345,47673.0,47670.0,0.33033567]
[1641084595169,0.35716345,47673.0,47672.0,0.001]
[1641084597188,0.35716345,47673.0,47672.0,0.193]
[1641084597387,0.35716345,47674.0,47672.0,0.193]
[1641084597597,0.35716345,47674.0,47673.0,0.001]
[1641084599292,0.35716345,47674.0,47673.0,0.192]
[1641084600687,0.35716345,47674.0,47673.0,0.001]
[1641084600889,0.35716345,47675.0,47673.0,0.001]
[1641084601091,0.35716345,47675.0,47674.0,0.001]
[1641084602992,0.35716345,47676.0,47674.0,0.001]
[1641084603193,0.35716345,47676.0,47674.0,0.191]
[1641084603894,0.35716345,47675.0,47674.0,0.191]
[1641084604092,0.35716345,47675.0,47674.0,0.192]
[1641084604595,0.35716345,47675.0,47674.0,0.001]
[1641084605192,0.35716345,47675.0,47674.0,0.192]
[1641084606093,0.92279756,47678.0,47674.0,0.192]
[1641084606294,0.83336997,47677.0,47674.0,0.191]
[1641084606493,0.83336997,47677.0,47672.0,0.02097622]
[1641084606695,1.01336997,47677.0,47672.0,0.02097622]
[1641084606894,0.83336997,47677.0,47672.0,0.02097622]
[1641084607295,0.08942759,47679.0,47672.0,0.21197622]
[1641084607495,1.70029821,47679.0,47675.0,1.46314584]
[1641084607895,0.18,47676.0,47675.0,1.46314584]
[1641084608097,0.18,47676.0,47674.0,0.82322727]
[1641084608295,0.18,47676.0,47672.0,0.191]
[1641084608497,0.18,47673.0,47671.0,1.17803374]
[1641084608697,0.18,47673.0,47658.0,0.02098216]
[1641084608897,0.18,47669.0,47658.0,0.02098216]
[1641084609098,0.18,47669.0,47668.0,1.28894163]
[1641084609297,0.32033567,47669.0,47668.0,1.46894163]
[1641084609499,0.32033567,47669.0,47668.0,0.181]
[1641084610798,0.32033567,47669.0,47668.0,0.001]
[1641084611299,0.32033567,47669.0,47668.0,0.186]
[1641084612700,0.32033567,47669.0,47668.0,0.001]
[1641084613300,0.32033567,47669.0,47668.0,0.185]
[1641084614601,0.32033567,47669.0,47668.0,0.001]
[1641084615203,0.32033567,47669.0,47668.0,0.184]
[1641084616503,0.32033567,47669.0,47668.0,0.001]
[1641084616904,1.5116815,47669.0,47668.0,0.001]
[1641084617304,1.5116815,47669.0,47668.0,0.185]
[1641084619206,1.5116815,47669.0,47668.0,0.369]
[1641084619406,1.5116815,47669.0,47668.0,0.368]
[1641084619606,1.5116815,47669.0,47657.0,1.18395758]
[1641084619809,0.18,47658.0,47657.0,1.18395758]
[1641084620010,0.2653,47658.0,47657.0,1.18395758]
[1641084620607,0.2653,47658.0,47657.0,1.18495758]
[1641084621216,0.4543,47658.0,47657.0,1.18495758]
[1641084621516,0.8117509,47658.0,47657.0,0.001]
[1641084622618,0.6227509,47658.0,47657.0,0.001]
[1641084623219,0.8127509,47658.0,47657.0,0.001]
[1641084624518,0.6227509,47658.0,47657.0,0.001]
[1641084625222,0.6327509,47658.0,47657.0,0.001]
[1641084626520,0.4427509,47658.0,47657.0,0.001]
[1641084626920,0.0853,47658.0,47657.0,0.001]
[1641084627220,0.19,47658.0,47657.0,0.001]
[1641084628620,0.3574509,47660.0,47657.0,0.001]
[1641084628820,0.3574509,47660.0,47653.0,0.829622]
[1641084629222,0.5474509,47660.0,47653.0,0.829622]
[1641084629420,0.3574509,47659.0,47654.0,0.59253262]
[1641084629622,0.3574509,47659.0,47658.0,0.001]
[1641084630826,0.3574509,47660.0,47658.0,0.001]
[1641084631027,0.3574509,47660.0,47655.0,0.59253262]
[1641084631225,0.19,47659.0,47655.0,0.59253262]
[1641084631426,0.19,47659.0,47658.0,0.001]
[1641084632527,0.3574509,47661.0,47658.0,0.001]
[1641084632727,0.3574509,47661.0,47655.0,0.59253262]
[1641084632929,0.3574509,47661.0,47656.0,0.73286829]
[1641084633230,0.5474509,47661.0,47656.0,0.73286829]
[1641084634130,0.3574509,47658.0,47657.0,1.4464792]
[1641084634330,0.3574509,47658.0,47657.0,1.4474792]
[1641084635331,0.5484509,47658.0,47657.0,1.4474792]
[1641084636736,0.3574509,47658.0,47657.0,1.4474792]
[1641084637236,0.5484509,47658.0,47657.0,1.4474792]
[1641084638644,0.3574509,47658.0,47657.0,1.4474792]
[1641084638843,0.59560916,47659.0,47657.0,1.4474792]
[1641084639047,0.59560916,47659.0,47658.0,0.001]
[1641084641448,0.78660916,47659.0,47658.0,0.001]
[1641084642748,0.59560916,47659.0,47658.0,0.001]
[1641084643448,0.78660916,47659.0,47658.0,0.001]
[1641084643846,0.191,47659.0,47658.0,0.001]
[1641084644048,0.28045154,47659.0,47658.0,0.001]
[1641084644649,0.08945154,47659.0,47658.0,0.001]
[1641084645350,0.27945154,47659.0,47658.0,0.001]
[1641084645551,1.11330336,47659.0,47658.0,0.001]
[1641084647353,1.11430336,47659.0,47658.0,0.001]
[1641084648655,0.92330336,47659.0,47658.0,0.001]
[1641084649456,1.11530336,47659.0,47658.0,0.001]
[1641084649657,1.11530336,47659.0,47658.0,0.6178572]
[1641084650058,0.28145154,47659.0,47658.0,0.6178572]
[1641084650257,0.28145154,47659.0,47658.0,0.001]
[1641084650658,0.08945154,47659.0,47658.0,0.001]
[1641084651259,0.28145154,47659.0,47658.0,0.001]
[1641084652662,0.08945154,47659.0,47658.0,0.001]
[1641084653363,0.28145154,47659.0,47658.0,0.001]
[1641084653562,1.47295455,47659.0,47658.0,0.001]
[1641084654663,1.28095455,47659.0,47658.0,0.001]
[1641084655362,1.47395455,47659.0,47658.0,0.001]
[1641084656764,1.28095455,47659.0,47658.0,0.001]
[1641084657463,1.47295455,47659.0,47658.0,0.001]
[1641084658065,0.28145154,47659.0,47658.0,0.001]
[1641084658466,0.28145154,47659.0,47658.0,1.27268184]
[1641084658667,0.08945154,47659.0,47658.0,1.27268184]
[1641084659471,0.28145154,47659.0,47658.0,1.27268184]
[1641084660468,0.28145154,47659.0,47658.0,0.001]
[1641084660868,0.08945154,47659.0,47658.0,0.001]
[1641084661568,0.28145154,47659.0,47658.0,0.001]
[1641084663275,1.47372266,47659.0,47658.0,0.68557551]
[1641084663474,1.66572266,47659.0,47658.0,0.68557551]
[1641084663776,0.384,47659.0,47658.0,0.830622]
[1641084664577,0.08945154,47659.0,47658.0,0.830622]
[1641084665379,0.28145154,47659.0,47658.0,0.830622]
[1641084665577,0.192,47659.0,47658.0,0.001]
[1641084665779,1.38427112,47659.0,47658.0,0.59488922]
[1641084666280,0.192,47659.0,47658.0,0.59488922]
[1641084666479,0.28145154,47659.0,47658.0,1.27946473]
[1641084666678,0.08945154,47659.0,47658.0,1.27946473]
[1641084667483,0.28145154,47659.0,47658.0,1.27946473]
[1641084668380,0.28145154,47659.0,47658.0,0.59488922]
[1641084668680,0.08945154,47659.0,47658.0,0.001]
[1641084669480,0.28145154,47659.0,47658.0,0.001]
[1641084670281,0.192,47659.0,47658.0,1.27952161]
[1641084670681,0.08945154,47659.0,47658.0,1.27952161]
[1641084671482,0.28145154,47659.0,47658.0,1.27952161]
[1641084671684,0.28145154,47659.0,47658.0,0.59488922]
[1641084671883,0.28145154,47659.0,47658.0,0.001]
[1641084671884,1.38414189,47659.0,47658.0,0.001]
[1641084672385,1.47359343,47659.0,47658.0,0.001]
[1641084672785,1.28159343,47659.0,47658.0,0.001]
[1641084673483,1.47359343,47659.0,47658.0,0.001]
[1641084673685,1.38414189,47659.0,47658.0,0.001]
[1641084674684,1.19214189,47659.0,47658.0,0.001]
[1641084675184,1.28159343,47659.0,47658.0,0.001]
[1641084675386,1.47359343,47659.0,47658.0,0.001]
[1641084676987,1.28159343,47659.0,47658.0,0.001]
[1641084677386,1.47359343,47659.0,47658.0,0.001]
[1641084678785,1.28159343,47659.0,47658.0,0.001]
[1641084679389,1.47359343,47659.0,47658.0,0.001]
[1641084679990,1.38414189,47659.0,47657.0,0.59388922]
[1641084680488,0.08945154,47658.0,47657.0,0.59388922]
[1641084681390,0.28045154,47658.0,47657.0,0.59388922]
[1641084682090,0.28045154,47658.0,47655.0,0.59388922]
[1641084682793,1.28164912,47657.0,47655.0,0.59388922]
[1641084683392,1.47364912,47657.0,47655.0,0.59388922]
[1641084683892,1.33253325,47656.0,47654.0,0.59388922]
[1641084684895,0.08945154,47655.0,47654.0,0.59388922]
[1641084685396,0.28245154,47655.0,47654.0,0.59388922]
[1641084687406,0.47545154,47655.0,47654.0,0.59388922]
[1641084687908,0.74432154,47655.0,47654.0,0.59388922]
[1641084688107,0.74432154,47655.0,47642.0,2.07623567]
[1641084688308,0.18,47648.0,47644.0,1.39131077]
[1641084688508,0.18,47648.0,47644.0,0.76964582]
[1641084688707,0.20099679,47645.0,47644.0,0.76964582]
[1641084688907,0.26804679,47645.0,47644.0,0.76964582]
[1641084689108,0.26804679,47645.0,47643.0,1.39131077]
[1641084689109,1.37204679,47645.0,47643.0,0.74775539]
[1641084689309,0.02099941,47644.0,47636.0,1.51050701]
[1641084689508,0.20100096,47637.0,47636.0,1.51050701]
[1641084689709,1.30500096,47637.0,47636.0,1.51050701]
[1641084689910,1.72600797,47637.0,47636.0,1.51050701]
[1641084690525,1.72600797,47637.0,47634.0,0.73493199]
[1641084690910,0.62200797,47637.0,47634.0,0.73493199]
[1641084691512,0.81100797,47637.0,47634.0,0.73493199]
[1641084692210,0.81100797,47637.0,47628.0,0.009794]
[1641084692811,0.62200797,47637.0,47628.0,0.009794]
[1641084693412,0.81200797,47637.0,47628.0,0.009794]
[1641084693912,0.14033567,47629.0,47628.0,0.009794]
[1641084694314,0.14033567,47629.0,47626.0,0.02]
[1641084695519,0.33133567,47629.0,47626.0,0.02]
[1641084695919,0.33133567,47629.0,47628.0,1.19301252]
[1641084696528,0.33133567,47629.0,47626.0,0.02]
[1641084696729,1.16596212,47629.0,47626.0,0.02]
[1641084696928,0.97496212,47629.0,47626.0,0.02]
[1641084697431,1.16596212,47629.0,47626.0,0.02]
[1641084698031,0.14033567,47627.0,47626.0,0.02]
[1641084698630,0.73623795,47627.0,47626.0,0.02]
[1641084699229,0.14033567,47627.0,47626.0,0.02]
[1641084699429,0.33133567,47627.0,47626.0,0.02]
[1641084699830,0.92723795,47627.0,47626.0,0.02]
[1641084700529,0.33133567,47627.0,47626.0,0.02]
[1641084700832,0.14033567,47627.0,47626.0,0.02]
[1641084701429,0.32333567,47627.0,47626.0,0.02]
[1641084701632,0.68061312,47627.0,47626.0,0.02]
[1641084702630,0.32333567,47627.0,47626.0,0.02]
[1641084702831,0.14033567,47627.0,47626.0,0.02]
[1641084703031,0.59590228,47628.0,47626.0,0.14]
[1641084703235,0.83462645,47629.0,47627.0,0.06]
[1641084703433,1.19232163,47632.0,47627.0,0.06]
[1641084703631,0.14033567,47637.0,47631.0,0.18]
[1641084704732,0.08948839,47634.0,47632.0,0.33819754]
[1641084705532,0.27448839,47634.0,47632.0,0.33819754]
[1641084705731,0.185,47634.0,47632.0,0.33819754]
[1641084706531,0.08948839,47633.0,47628.0,1.31231377]
[1641084707434,0.28248839,47633.0,47628.0,1.31231377]
[1641084707633,0.193,47633.0,47628.0,1.31231377]
[1641084708333,0.08948839,47632.0,47628.0,1.31231377]
[1641084709533,0.193,47632.0,47628.0,1.31231377]
[1641084710737,0.193,47632.0,47630.0,0.18]
[1641084710937,1.31155379,47635.0,47628.0,1.31231377]
[1641084711341,0.14033567,47637.0,47626.0,0.16033567]
[1641084711640,0.185,47635.0,47626.0,0.16033567]
[1641084712839,0.18,47636.0,47626.0,0.16033567]
[1641084713439,0.365,47636.0,47626.0,0.16033567]
[1641084713843,0.185,47636.0,47626.0,0.16033567]
[1641084714843,0.16133496,47637.0,47626.0,0.16033567]
[1641084715444,0.34533496,47637.0,47626.0,0.16033567]
[1641084716245,0.34533496,47637.0,47629.0,0.18]
[1641084716847,0.16133496,47637.0,47629.0,0.18]
[1641084717647,0.34233496,47637.0,47629.0,0.18]
[1641084717848,0.34233496,47637.0,47634.0,0.001]
[1641084718048,0.34233496,47637.0,47634.0,0.06592]
[1641084718848,0.16133496,47637.0,47634.0,0.06592]
[1641084719249,0.16133496,47637.0,47636.0,0.001]
[1641084719649,0.35533496,47637.0,47636.0,0.001]
[1641084720751,0.16133496,47637.0,47636.0,0.001]
[1641084721664,0.35433496,47637.0,47636.0,0.001]
[1641084723561,0.54633496,47637.0,47636.0,0.001]
[1641084724862,0.16133496,47637.0,47636.0,0.001]
[1641084725265,0.16133496,47637.0,47629.0,0.18]
[1641084725467,0.16133496,47637.0,47626.0,0.16033567]
[1641084725665,0.35333496,47637.0,47626.0,0.16033567]
[1641084725966,0.18,47636.0,47626.0,0.16033567]
[1641084727669,0.371,47636.0,47626.0,0.16033567]
[1641084728869,0.16133496,47637.0,47626.0,0.16033567]
[1641084729069,0.18,47635.0,47626.0,0.16033567]
[1641084729669,0.371,47635.0,47626.0,0.16033567]
[1641084730670,0.191,47635.0,47626.0,0.16033567]
[1641084730870,0.18,47635.0,47626.0,0.16033567]
[1641084731273,0.18,47634.0,47626.0,0.16033567]
[1641084731471,0.02100111,47633.0,47626.0,0.16033567]
[1641084733472,0.08950015,47632.0,47631.0,0.83268154]
[1641084734976,0.08950015,47632.0,47630.0,0.83268154]
[1641084735676,0.28050015,47632.0,47630.0,0.83268154]
[1641084736277,0.28050015,47632.0,47631.0,0.43939438]
[1641084736977,0.08950015,47632.0,47631.0,0.43939438]
[1641084737578,0.28050015,47632.0,47631.0,0.43939438]
[1641084737779,0.46050015,47632.0,47631.0,0.43939438]
[1641084738379,1.58550295,47632.0,47631.0,0.42769438]
[1641084738579,1.58550295,47632.0,47629.0,0.83519035]
[1641084738779,0.18,47630.0,47629.0,0.83519035]
[1641084738978,0.34134028,47630.0,47629.0,0.83519035]
[1641084739179,1.44534028,47630.0,47629.0,0.83519035]
[1641084739379,1.52772028,47630.0,47629.0,0.83519035]
[1641084739581,1.71572028,47630.0,47626.0,0.02]
[1641084739779,0.18,47627.0,47626.0,0.02]
[1641084741585,0.369,47627.0,47626.0,0.02]
[1641084742983,0.24307,47627.0,47626.0,0.02]
[1641084743684,0.43207,47627.0,47626.0,0.02]
[1641084744886,0.24307,47627.0,47626.0,0.02]
[1641084745591,0.43207,47627.0,47626.0,0.02]
[1641084746892,1.67468715,47627.0,47626.0,0.02]
[1641084747596,1.86368715,47627.0,47626.0,0.02]
[1641084748995,0.24307,47627.0,47626.0,0.02]
[1641084749196,0.18,47627.0,47626.0,0.02]
[1641084749599,0.369,47627.0,47626.0,0.02]
[1641084749896,0.39000625,47627.0,47626.0,0.02]
[1641084750099,1.8216234,47627.0,47626.0,0.02]
[1641084750997,1.4526234,47627.0,47626.0,0.02]
[1641084751496,1.59295907,47627.0,47626.0,0.02]
[1641084751697,1.53063858,47627.0,47626.0,0.02]
[1641084752099,1.39030291,47627.0,47626.0,0.02]
[1641084753003,1.20130291,47627.0,47626.0,0.02]
[1641084753203,1.38130291,47627.0,47626.0,0.02]
[1641084753406,1.52163858,47627.0,47626.0,0.02]
[1641084753605,1.71063858,47627.0,47626.0,0.02]
[1641084754006,1.80016204,47627.0,47626.0,0.02]
[1641084755222,0.61986538,47627.0,47626.0,0.02]
[1641084755621,0.80886538,47627.0,47626.0,0.02]
[1641084756921,0.43086538,47627.0,47626.0,0.02]
[1641084757522,1.25684613,47627.0,47626.0,0.02]
[1641084757724,1.26584613,47627.0,47626.0,0.02]
[1641084759026,1.07684613,47627.0,47626.0,0.02]
[1641084759626,1.26684613,47627.0,47626.0,0.02]
[1641084761027,1.07684613,47627.0,47626.0,0.02]
[1641084761629,1.26684613,47627.0,47626.0,0.02]
[1641084763033,1.07684613,47627.0,47626.0,0.02]
[1641084763630,1.26684613,47627.0,47626.0,0.02]
[1641084764931,1.07684613,47627.0,47626.0,0.02]
[1641084765634,1.26684613,47627.0,47626.0,0.02]
[1641084766832,1.25684613,47627.0,47626.0,0.02]
[1641084767234,1.07684613,47627.0,47626.0,0.02]
[1641084767634,1.26684613,47627.0,47626.0,0.02]
[1641084769033,1.07684613,47627.0,47626.0,0.02]
[1641084769635,1.26684613,47627.0,47626.0,0.02]
[1641084769833,1.26684613,47627.0,47626.0,0.11044]
[1641084770033,0.27952346,47627.0,47626.0,0.11144]
[1641084770234,0.27952346,47627.0,47626.0,0.29144]
[1641084770939,1.29832633,47632.0,47626.0,0.35481327]
[1641084771134,0.35428978,47629.0,47626.0,0.11044]
[1641084771333,0.35428978,47629.0,47628.0,0.18]
[1641084771534,0.35428978,47629.0,47628.0,0.181]
[1641084771834,0.48228978,47629.0,47628.0,0.32133567]
[1641084772533,0.128,47629.0,47628.0,0.32133567]
[1641084773133,0.35428978,47635.0,47628.0,0.32133567]
[1641084773333,0.35428978,47635.0,47633.0,0.181]
[1641084773538,0.35428978,47636.0,47634.0,0.001]
[1641084773735,0.35428978,47636.0,47635.0,0.001]
[1641084775434,0.35428978,47637.0,47635.0,0.001]
[1641084775636,0.35428978,47637.0,47636.0,0.181]
[1641084775837,0.35428978,47637.0,47636.0,0.39120567]
[1641084776435,0.82667614,47640.0,47636.0,0.39120567]
[1641084776436,0.35428978,47640.0,47636.0,0.39120567]
[1641084776637,0.35428978,47640.0,47639.0,0.001]
[1641084777338,0.35428978,47641.0,47639.0,0.001]
[1641084777536,0.35428978,47641.0,47640.0,0.001]
[1641084777936,1.47832633,47649.0,47640.0,0.001]
[1641084778136,1.29832633,47640.0,47639.0,0.83536345]
[1641084778337,1.29832633,47640.0,47639.0,0.83636345]
[1641084779139,1.29832633,47640.0,47639.0,0.001]
[1641084779740,1.49532633,47640.0,47639.0,0.001]
[1641084780941,1.29832633,47640.0,47639.0,0.001]
[1641084781542,0.18,47649.0,47639.0,0.001]
[1641084781543,0.37664297,47646.0,47639.0,0.001]
[1641084781745,0.196,47640.0,47636.0,0.14033567]
[1641084781942,0.196,47640.0,47639.0,0.001]
[1641084783746,0.197,47640.0,47639.0,0.001]
[1641084785649,0.37664297,47646.0,47639.0,0.001]
[1641084785850,0.198,47640.0,47636.0,0.14033567]
[1641084786052,0.198,47640.0,47639.0,0.001]
[1641084787154,0.02099535,47646.0,47639.0,0.001]
[1641084787355,0.02099535,47646.0,47644.0,0.001]
[1641084787557,0.02099535,47646.0,47645.0,0.001]
[1641084787754,0.21599535,47646.0,47645.0,0.001]
[1641084788857,0.57164297,47646.0,47645.0,0.001]
[1641084789056,0.37664297,47646.0,47645.0,0.001]
[1641084789856,0.57064297,47646.0,47645.0,0.001]
[1641084791060,0.37664297,47646.0,47645.0,0.001]
[1641084791259,0.35564762,47646.0,47645.0,0.001]
[1641084791859,0.54964762,47646.0,47645.0,0.001]
[1641084793060,0.35564762,47646.0,47645.0,0.001]
[1641084793759,0.54964762,47646.0,47645.0,0.001]
[1641084795063,0.35564762,47646.0,47645.0,0.001]
[1641084795264,0.35564762,47646.0,47645.0,0.190794]
[1641084795864,0.54064762,47646.0,47645.0,0.283794]
[1641084796565,0.185,47646.0,47645.0,0.283794]
[1641084796768,0.27447852,47646.0,47645.0,0.68986583]
[1641084796966,0.27447852,47646.0,47645.0,1.2848955]
[1641084797165,0.08947852,47646.0,47645.0,1.1918955]
[1641084797366,7.852e-05,47646.0,47645.0,1.1918955]
[1641084797567,1.43161715,47649.0,47645.0,1.21288222]
[1641084797767,1.43161715,47649.0,47648.0,0.181]
[1641084797965,1.31129088,47649.0,47648.0,0.181]
[1641084799067,1.31129088,47651.0,47648.0,0.181]
[1641084799271,1.31129088,47651.0,47650.0,0.001]
[1641084799872,1.35229088,47651.0,47650.0,0.99302248]
[1641084800171,1.35229088,47651.0,47650.0,1.13335815]
[1641084801771,1.38029088,47651.0,47650.0,1.13335815]
[1641084802470,1.38029088,47651.0,47650.0,0.29733567]
[1641084803069,1.38029088,47651.0,47650.0,1.13335815]
[1641084803269,1.31129088,47651.0,47650.0,0.97635815]
[1641084803480,1.31129088,47651.0,47650.0,0.97535815]
[1641084803779,0.155,47651.0,47650.0,1.11835815]
[1641084804280,0.155,47651.0,47650.0,0.87819319]
[1641084804679,0.155,47651.0,47650.0,0.28333567]
[1641084804877,1.4671852,47651.0,47650.0,0.28333567]
[1641084805779,1.3511852,47651.0,47650.0,0.30233567]
[1641084806178,1.3511852,47651.0,47650.0,1.13735815]
[1641084806377,1.3511852,47651.0,47650.0,1.13635815]
[1641084806978,1.37217817,47651.0,47650.0,1.13635815]
[1641084807180,0.02099297,47651.0,47650.0,0.14033567]
[1641084807779,0.21199297,47651.0,47650.0,0.14033567]
[1641084809180,0.02099297,47651.0,47650.0,0.14033567]
[1641084809384,1.21195088,47651.0,47650.0,0.14033567]
[1641084810081,1.40295088,47651.0,47650.0,0.14033567]
[1641084811184,1.21195088,47651.0,47650.0,0.14033567]
[1641084811988,1.40395088,47651.0,47650.0,0.14033567]
[1641084812885,1.4934294,47651.0,47650.0,0.14033567]
[1641084813088,1.4814294,47651.0,47650.0,0.14033567]
[1641084813287,1.104,47650.0,47636.0,0.59379746]
[1641084813489,0.18,47643.0,47636.0,0.59379746]
[1641084813887,0.18,47644.0,47636.0,0.59379746]
[1641084814089,0.02099737,47641.0,47636.0,0.59379746]
[1641084814288,0.02099737,47641.0,47640.0,0.001]
[1641084815791,0.61655104,47641.0,47640.0,0.001]
[1641084815995,0.81055104,47641.0,47640.0,0.001]
[1641084816591,0.21499737,47641.0,47640.0,0.001]
[1641084816791,0.3044879,47641.0,47640.0,0.001]
[1641084817191,0.1104879,47641.0,47640.0,0.001]
[1641084817594,0.02099737,47641.0,47640.0,0.001]
[1641084817793,0.61347611,47641.0,47640.0,0.001]
[1641084817992,0.80747611,47641.0,47640.0,0.001]
[1641084819693,0.21499737,47641.0,47640.0,0.001]
[1641084819895,1.33226737,47641.0,47640.0,0.001]
[1641084821395,0.94426737,47641.0,47640.0,0.001]
[1641084822096,1.13826737,47641.0,47640.0,0.001]
[1641084823597,0.30449223,47641.0,47640.0,0.001]
[1641084824600,0.30449223,47641.0,47637.0,0.14033567]
[1641084825200,0.11049223,47641.0,47637.0,0.14033567]
[1641084825401,0.355601,47638.0,47637.0,0.14033567]
[1641084825803,0.355601,47638.0,47637.0,0.14133567]
[1641084826002,0.551601,47638.0,47637.0,0.14133567]
[1641084826402,1.5081852,47638.0,47637.0,0.57432411]
[1641084826603,1.5081852,47638.0,47637.0,1.16812157]
[1641084827005,1.59767846,47638.0,47637.0,0.73513313]
[1641084827205,1.40167846,47638.0,47637.0,0.73513313]
[1641084827805,1.3121852,47638.0,47637.0,0.73513313]
[1641084828005,0.196,47638.0,47637.0,0.14133567]
[1641084829307,0.35547757,47640.0,47637.0,0.14133567]
[1641084829605,0.35547757,47640.0,47637.0,0.14033567]
[1641084829909,0.54947757,47640.0,47637.0,0.14033567]
[1641084831506,0.35547757,47640.0,47637.0,0.14033567]
[1641084831905,0.54947757,47640.0,47637.0,0.14033567]
[1641084833107,0.54947757,47640.0,47639.0,0.001]
[1641084833306,0.59246262,47641.0,47639.0,0.001]
[1641084833509,0.59246262,47641.0,47637.0,0.14033567]
[1641084833907,0.78646262,47641.0,47637.0,0.14033567]
[1641084835317,0.59246262,47642.0,47637.0,0.14033567]
[1641084835518,0.59246262,47642.0,47637.0,0.22684567]
[1641084835918,0.78746262,47642.0,47637.0,0.22684567]
[1641084836920,0.78746262,47642.0,47637.0,0.14033567]
[1641084837232,0.59246262,47642.0,47637.0,0.14033567]
[1641084837931,0.78646262,47642.0,47637.0,0.14033567]
[1641084839233,0.96646262,47642.0,47637.0,0.14033567]
[1641084839440,0.77246262,47642.0,47637.0,0.14033567]
[1641084839734,0.59246262,47642.0,47637.0,0.14033567]
[1641084839936,0.78646262,47642.0,47637.0,0.14033567]
[1641084840137,0.59246262,47641.0,47637.0,0.14033567]
[1641084841933,0.78646262,47641.0,47637.0,0.14033567]
[1641084843235,0.59246262,47641.0,47637.0,0.14033567]
[1641084843936,0.78646262,47641.0,47637.0,0.14033567]
[1641084845338,0.59246262,47641.0,47637.0,0.14033567]
[1641084846038,0.194,47641.0,47637.0,0.14033567]
[1641084847441,0.59246262,47642.0,47637.0,0.14033567]
[1641084847941,0.78646262,47642.0,47637.0,0.14033567]
[1641084848142,0.96646262,47642.0,47637.0,0.14033567]
[1641084848842,0.35490154,47640.0,47637.0,0.14033567]
[1641084849743,0.35490154,47639.0,47637.0,0.14033567]
[1641084852047,0.195,47639.0,47637.0,0.14033567]
[1641084852247,0.28449714,47639.0,47637.0,0.14033567]
[1641084853549,0.08949714,47639.0,47637.0,0.14033567]
[1641084853850,0.29049601,47638.0,47636.0,0.59379746]
[1641084854348,0.02100021,47637.0,47634.0,0.59379746]
[1641084854550,0.18,47635.0,47634.0,0.59379746]
[1641084855750,0.18,47635.0,47632.0,0.73413313]
[1641084856149,0.374,47635.0,47632.0,0.73413313]
[1641084856551,1.30222905,47633.0,47632.0,0.73413313]
[1641084856749,1.30222905,47633.0,47632.0,0.14033567]
[1641084858052,1.49722905,47633.0,47632.0,0.14033567]
[1641084859253,1.58672619,47633.0,47632.0,0.14033567]
[1641084859454,1.46183619,47633.0,47631.0,0.59379746]
[1641084859653,0.18,47632.0,47631.0,0.59379746]
[1641084860053,0.18,47632.0,47630.0,0.83502248]
[1641084860254,1.30500212,47632.0,47628.0,1.14437952]
[1641084860453,0.18,47629.0,47628.0,0.65213491]
[1641084860854,3.10167402,47629.0,47628.0,0.65213491]
[1641084861255,4.20567402,47629.0,47621.0,0.38093491]
[1641084862055,4.39267402,47629.0,47619.0,0.14033567]
[1641084862455,1.45262315,47627.0,47619.0,0.14033567]
[1641084862656,2.55662315,47627.0,47619.0,0.14033567]
[1641084863756,1.125006,47627.0,47619.0,0.14033567]
[1641084863956,1.21450314,47627.0,47619.0,0.14033567]
[1641084864156,1.40250314,47627.0,47619.0,0.14033567]
[1641084864357,0.29850314,47627.0,47619.0,0.14033567]
[1641084865557,1.21450314,47627.0,47619.0,0.14033567]
[1641084866060,1.40250314,47627.0,47619.0,0.14033567]
[1641084868065,1.59050314,47627.0,47619.0,0.14033567]
[1641084868464,0.18,47620.0,47619.0,0.14033567]
[1641084870168,0.37,47620.0,47619.0,0.14033567]
[1641084870370,0.37,47620.0,47616.0,0.14033567]
[1641084870573,0.20100883,47617.0,47616.0,0.14033567]
[1641084870770,0.02100883,47617.0,47616.0,0.14033567]
[1641084872087,0.193,47617.0,47616.0,0.14033567]
[1641084872284,0.193,47617.0,47616.0,0.14133567]
[1641084873489,0.0210064,47621.0,47616.0,0.14133567]
[1641084873790,0.0210064,47621.0,47616.0,0.23051567]
[1641084873986,0.2010064,47621.0,47616.0,0.23051567]
[1641084874187,0.2120064,47621.0,47616.0,0.23051567]
[1641084875388,0.0210064,47621.0,47616.0,0.23051567]
[1641084876189,0.2130064,47621.0,47616.0,0.23051567]